Cogmind - Beta 15 @@@ ROGUE MODE // 2025.06.19 @ 13:26:25 Player: Yurom Result: Destroyed by S-27 Virus with Autogun Performance ------------- Evolutions (3) 1500 Regions Visited (7) 1400 Robots Destroyed (50) 250 Value Destroyed (1402) 1402 Prototype IDs (1) 20 Alien Tech Used (0) 0 Bonus (0) 0 TOTAL SCORE: 4572 Bonus ------- None Cogmind --------- Core Integrity 0/700 Matter 228/300 Energy 80/160 System Corruption 8% Temperature Cool (0) Movement Core (100) Ox1 Location -7/Storage Parts ------- > --- POWER (2) -------- Light Nuclear Core > --- PROPULSION (4) --- (None) > --- UTILITY (3) ------ (None) > --- WEAPON (4) ------- (None) > --- INVENTORY (5) ---- Particle Gun Flak Gun Flak Gun Peak State ------------ > --- POWER ------------ Light Deuterium Engine Improved Deuterium Engine > --- PROPULSION ------- Armored Treads Armored Treads Advanced Treads > --- UTILITY ---------- Machine Analyzer Particle Charger Medium Armor Plating > --- WEAPON ----------- Particle Gun Flak Cannon Heavy Mace > --- INVENTORY -------- Beam Rifle Proton Bomb Trap [Rating: 32] Favorites ----------- Power Light Nuclear Core Engine Reinforced Deuterium Engine Power Core Light Nuclear Core Propulsion Aluminum Leg Treads Armored Treads Leg Aluminum Leg Wheel Armored Wheel Flight Unit VTOL Module Utility Machine Analyzer Device Heat Sink Storage Small Battery Processor Machine Analyzer Protection Medium Armor Plating Weapon Particle Gun Energy Gun Particle Gun Energy Cannon EM Pulse Cannon Ballistic Gun High-powered Shotgun Ballistic Cannon Flak Cannon Launcher EMP Blaster Impact Weapon Heavy Mace Slashing Weapon Katana Build | -11 -10 -10 -9 -9 -8 -7 -7 ------- Run | Yrd Mat Min Mat Min Mat Fac Sto Slots Evolved 6 | . . . 2 . 2 2 . Power 1 | . . . . . 1 . . Propulsion 2 | . . . . . 1 1 . Utility 1 | . . . 1 . . . . Weapon 2 | . . . 1 . . 1 . Parts Attached 67 | 5 8 . 10 . 16 17 11 Power 15 | 1 1 . . . 5 5 3 Engine 6 | 1 . . . . 4 1 . Core 9 | . 1 . . . 1 4 3 Reactor . | . . . . . . . . Propulsion 14 | 2 2 . 2 . 1 6 1 Treads 3 | . . . 2 . 1 . . Leg 6 | 2 . . . . . 3 1 Wheel 2 | . 2 . . . . . . Hover . | . . . . . . . . Flight 3 | . . . . . . 3 . Utility 14 | . 3 . 4 . 3 2 2 Device 7 | . 2 . 1 . 3 . 1 Storage 1 | . 1 . . . . . . Processor 2 | . . . 2 . . . . Hackware . | . . . . . . . . Protection 4 | . . . 1 . . 2 1 Artifact . | . . . . . . . . Weapon 24 | 2 2 . 4 . 7 4 5 Energy Gun 9 | 2 1 . . . 3 3 . Energy Cannon 1 | . . . . . 1 . . Ballistic Gun 6 | . . . . . . 1 5 Ballistic Cannon 1 | . . . . . 1 . . Launcher 1 | . 1 . . . . . . Special Weapon . | . . . . . . . . Impact Weapon 4 | . . . 4 . . . . Slashing Weapon 2 | . . . . . 2 . . Piercing Weapon . | . . . . . . . . Special Melee Weapon . | . . . . . . . . Unidentified Prototypes 1 | . . . . . . 1 . Corrupted Parts 1 | . . . . . . . 1 System Corruption 1 | . . . . . . . 1 Parts Lost 35 | . 1 4 2 . 8 5 15 Power 8 | . 1 . 1 . 2 2 2 Propulsion 6 | . . 1 . . . 1 4 Utility 9 | . . 2 . . 4 . 3 Weapon 12 | . . 1 1 . 2 2 6 Highest Loss Streak 7 | . 1 4 2 . 5 5 7 To Critical Strikes . | . . . . . . . . Average Backups 2 | . . 1 . . 2 3 3 Power . | . . . . . 1 1 1 Propulsion . | . . . . . . . . Utility . | . . 1 . . . . . Weapon . | . . . . . 1 . 2 Tool/Special . | . . . . . . . . Unused Backups 1 | . . . . . . 1 . Power 1 | . . . . . . 1 . Propulsion . | . . . . . . . . Utility . | . . . . . . . . Weapon . | . . . . . . . . Tool/Special . | . . . . . . . . Average Slot Usage (%) 72 | . 89 74 52 66 80 71 65 Engine 5 | . 5 . . . 10 8 6 Core 4 | . 7 14 2 . 2 3 6 Treads 6 | . . . 3 22 25 4 . Leg 6 | . 17 . . . . 6 10 Wheel 4 | . 10 22 9 . . . . Device 7 | . 9 7 1 11 8 15 2 Storage 2 | . 10 8 . . . . . Processor 4 | . . . 15 11 6 . . Protection 5 | . . . 8 11 3 5 7 Energy Gun 8 | . 22 14 . . 5 12 3 Ballistic Gun 3 | . . . . . . 1 18 Ballistic Cannon 1 | . . . . . 7 . . Launcher 1 | . 4 6 . . . . . Impact Weapon 3 | . . . 11 11 5 . . Slashing Weapon 3 | . . . . . 3 7 6 Peak Build Rating 32 | 5 14 14 17 17 32 30 31 Average Rating 18 | 4 9 10 10 17 26 23 23 On Entrance 14 | . 5 14 7 17 17 23 30 Naked Turns 16 | . . . . . . . 16 Heaviest Build 38 | 5 15 15 13 13 37 37 38 Greatest Support 62 | 20 24 24 40 40 62 62 30 Greatest Overweight (x) 10 | . . . 1 . . 6 10 Average Overweight (x) . | . . . . . . 1 2 Largest Inventory Capacity 5 | 5 5 5 5 5 5 5 5 Average Capacity 5 | 5 5 5 5 5 5 5 5 Most Carried 5 | . 2 4 5 1 5 5 5 Average Carried 2 | . . 2 1 1 3 3 3 Final Capacity 5 | 5 5 5 5 5 5 5 5 Final Carried 5 | . 1 3 1 1 5 5 3 Class Distribution -------------------- 72% | Mutant 13% | Scavenger-Tank 11% | Tank Dominant Class ---------------- Mutant | -10/Materials Mutant | -10/Mines Mutant | -9/Materials Mutant | -9/Mines Mutant | -8/Materials Mutant | -7/Factory Tank | -7/Storage Resources | -11 -10 -10 -9 -9 -8 -7 -7 ----------- Run | Yrd Mat Min Mat Min Mat Fac Sto Matter Collected 1220 | 107 255 4 68 32 174 297 283 Remotely . | . . . . . . . . Salvage Created 1639 | . 420 31 68 166 230 441 283 Parts 84 | . 25 . . 3 8 25 23 Haulers Intercepted . | . . . . . . . . Recyclers Shooed 1 | . 1 . . . . . . Parts Field Recycled . | . . . . . . . . Retrieved Matter . | . . . . . . . . Parts Self-Destructed . | . . . . . . . . Prevented . | . . . . . . . . Kills | -11 -10 -10 -9 -9 -8 -7 -7 ------- Run | Yrd Mat Min Mat Min Mat Fac Sto Combat Hostiles Destroyed 31 | . 6 3 . . 5 9 8 Melee 6 | . . . . . 1 5 . Guns 22 | . 6 3 . . 1 4 8 Cannons 3 | . . . . . 3 . . Classes Destroyed 11 | . 4 1 . 2 1 3 . Worker 7 | . 2 . . 3 . 1 1 Builder 6 | . 1 . 3 1 1 . . Tunneler 2 | . . . . 2 . . . Recycler 2 | . . . . 1 . 1 . Watcher 5 | . 3 . 1 . 1 . . Swarmer 6 | . . . . . . 4 2 Grunt 15 | . 6 . . . 4 3 2 Brawler 1 | . . . . . . 1 . Sentry 4 | . . . . . 1 . 3 Programmer 2 | . . . . . . 1 1 Assembled 3 | . . 3 . . . . . Best Kill Streak 5 | . 3 2 3 3 4 5 3 Combat Bots Only 4 | . 2 2 . . 3 4 3 Max Kills in Single Turn 2 | . 2 1 1 1 1 1 1 Gunslinging . | . . . . . . . . Exploded . | . . . . . . . . Melee 1 | . . . . . 1 1 . Uniques/NPCs Destroyed . | . . . . . . . . Combat | -11 -10 -10 -9 -9 -8 -7 -7 -------- Run | Yrd Mat Min Mat Min Mat Fac Sto Hostile Shots Fired 378 | . 32 39 28 1 37 61 180 Missed 138 | . 11 13 11 . 8 21 74 Hits 240 | . 21 26 17 1 29 40 106 Melee 8 | . . 4 . . . 4 . Projectile 232 | . 21 22 17 1 29 36 106 AOE 1 | . . . . . . . 1 Critical Strikes 12 | . . 1 2 . 2 3 4 Actively Blocked 3 | . . . . . . . 3 Part Disruptions 1 | . . . . . . 1 . Damage Taken 4899 | . 285 424 380 12 1272 701 1825 Core 1311 | . 58 146 177 . 216 127 587 Absorbed by Shields . | . . . . . . . . Redirected to Shielding 52 | . . . . . . . 52 Core Remaining (%) 58 | 100 . 18 . 55 60 . . Volleys Fired 133 | . 40 25 . . 22 24 22 Largest 3 | . 2 2 . . 2 3 3 Hottest 185 | . 105 98 . . 102 185 121 Shots Fired 248 | . 77 26 . . 35 54 56 Gun 224 | . 69 25 . . 20 54 56 Cannon 15 | . . . . . 15 . . Launcher 9 | . 8 1 . . . . . Special . | . . . . . . . . Kinetic 78 | . . . . . 15 11 52 Thermal 161 | . 69 25 . . 20 43 4 Explosive . | . . . . . . . . Electromagnetic 9 | . 8 1 . . . . . Robot Hit Streak 13 | . 7 3 . . 9 13 6 Robot Miss Streak 10 | . 5 4 . . 6 4 10 Penetration Max . | . . . . . . . . Secondary Targets 3 | . 2 . . . . . 1 Max Gunslinging Chain 1 | . 1 . . . . . 1 Shots Hit Robots 177 | . 39 9 8 11 26 40 44 Core Hits 95 | . 18 5 . 1 24 17 30 Critical Kills 1 | . . . . . . . 1 Critical Parts Destroyed 5 | . . . . 3 1 1 . Critical Strikes 9 | . 1 . . 3 1 3 1 Burn 1 | . 1 . . . . . . Destroy 2 | . . . . . . 1 1 Smash 4 | . . . . 3 1 . . Sever 2 | . . . . . . 2 . Melee Attacks 129 | . . . 19 12 47 26 25 Impact 51 | . . . 19 12 20 . . Slashing 78 | . . . . . 27 26 25 Piercing . | . . . . . . . . Sneak Attacks 15 | . . . 3 6 1 2 3 Combat Hostiles . | . . . . . . . . Follow-up Attacks . | . . . . . . . . Damage Inflicted 4387 | . 621 144 466 684 649 928 895 Guns 1775 | . 449 144 . . 161 361 660 Cannons 282 | . . . . . 282 . . Explosions 212 | . 170 . . . . . 42 Melee 2116 | . . . 466 684 206 567 193 Ramming 2 | . 2 . . . . . . Kinetic 1007 | . . . . . 282 132 593 Thermal 1050 | . 449 144 . . 161 229 67 Explosive 42 | . . . . . . . 42 Electromagnetic 170 | . 170 . . . . . . Impact 1320 | . . . 466 684 170 . . Slashing 796 | . . . . . 36 567 193 Piercing . | . . . . . . . . Highest Corruption 15 | . . . . . 15 11 12 Average Corruption 8 | . . . . . 14 9 7 Corruption Purged 5 | . . . . . . . 5 Corruption Blocked . | . . . . . . . . Effects 52 | . . . . . 6 11 35 Message Errors 13 | . . . . . 2 1 10 Matter Fused 11 | . . . . . 2 2 7 Heat Flow Errors 4 | . . . . . . 2 2 Energy Discharges 7 | . . . . . . 3 4 Parts Rejected 2 | . . . . . . 1 1 Parts Fused 2 | . . . . . . . 2 Data Loss (minor) 5 | . . . . . 1 . 4 Data Loss (major) 3 | . . . . . . 1 2 Misfires 2 | . . . . . 1 . 1 Alerts 1 | . . . . . . . 1 Weapon Failures 2 | . . . . . . 1 1 Overload Shots . | . . . . . . . . Overflow Damage 859 | . 37 . 224 395 125 28 50 Projectiles . | . . . . . . . . Explosions 43 | . 37 . . . . . 6 Melee 816 | . . . 224 395 125 28 44 Knockbacks 14 | . . . 1 4 9 . . Impact 5 | . . . 1 4 . . . Kinetic 6 | . . . . . 6 . . Secondary 3 | . . . . . 3 . . Self-Inflicted Damage 146 | . 37 . . . . . 109 Shots 4 | . 2 . . . . . 2 Rammed 1 | . . 1 . . . . . Targets Rammed 2 | . 1 1 . . . . . Kicked 1 | . 1 . . . . . . Crushed . | . . . . . . . . Highest Temperature 559 | . 195 364 23 . 454 559 245 Average Temperature 142 | . 66 176 14 . 184 210 58 Received Heat Transfer 1138 | . 138 40 132 6 288 162 372 Effects 17 | . . 1 . . 1 15 . Shutdowns 8 | . . . . . 1 7 . Energy Bleed 1 | . . . . . . 1 . Interference 1 | . . . . . . 1 . Matter Decay 1 | . . . . . . 1 . Damage (minor) 2 | . . 1 . . . 1 . Damage (major) 4 | . . . . . . 4 . Siege Activations . | . . . . . . . . Martial Activations . | . . . . . . . . Shielding Activations . | . . . . . . . . Robots Disrupted . | . . . . . . . . Combat Hostiles . | . . . . . . . . Robots Corrupted 10 | . . . 4 5 1 . . Combat Hostiles . | . . . . . . . . Parts Fried 15 | . 1 . 6 7 1 . . Impact Corruptions 33 | . . . 11 17 5 . . Robots Melted . | . . . . . . . . Combat Hostiles . | . . . . . . . . Parts Melted 3 | . 1 . . . . 2 . Heat Transferred 2515 | . 1109 370 . . 407 481 148 Parts Sabotaged . | . . . . . . . . Parts Stolen . | . . . . . . . . Parts Stripped . | . . . . . . . . Power Chain Reactions 1 | . 1 . . . . . . Alert | -11 -10 -10 -9 -9 -8 -7 -7 ------- Run | Yrd Mat Min Mat Min Mat Fac Sto Maximum Alert Level . | . . . . . . . . Low Security (%) 100 | 100 100 100 100 100 100 100 100 Level 1 . | . . . . . . . . Level 2 . | . . . . . . . . Level 3 . | . . . . . . . . Level 4 . | . . . . . . . . Level 5 . | . . . . . . . . High Security . | . . . . . . . . Max Security . | . . . . . . . . Peak Influence 99 | . 99 15 17 10 60 87 65 Initial 2 | . . 2 . . . . . Average 12 | . 30 . 1 . 7 18 12 Influence Increases 1062 | . 267 15 97 35 149 225 274 Destroy 0b10 Robot/C 560 | . 120 . . . 100 180 160 Destroy 0b10 Robot/NC 110 | . 30 . 20 35 10 10 5 Destroy Leader 150 | . 36 . 2 . 22 30 60 Trap Triggered on 0b10 10 | . . . 10 . . . . Disable Machine 90 | . 45 15 . . . . 30 Destroy Structure 52 | . 6 . 5 . 17 5 19 Lose Combat Pursuer 90 | . 30 . 60 . . . . Influence Decreases 1062 | . 260 22 97 35 149 225 274 Entered New Map 5 | . . 5 . . . . . Time Decay 931 | . 250 7 87 35 146 175 231 Lost Part 126 | . 10 10 10 . 3 50 43 Squads Dispatched 9 | . 2 . 2 . 1 1 3 Investigation 1 | . 1 . . . . . . Extermination 2 | . . . . . . 1 1 Reinforcement 6 | . 1 . 2 . 1 . 2 Assault . | . . . . . . . . Garrison . | . . . . . . . . Intercept . | . . . . . . . . Searches Triggered . | . . . . . . . . Construction Impeded 1 | . . . . . 1 . . Haulers Reinforced . | . . . . . . . . Active Scanning Responses . | . . . . . . . . Cargo Convoy Interrupts . | . . . . . . . . Stealth | -11 -10 -10 -9 -9 -8 -7 -7 --------- Run | Yrd Mat Min Mat Min Mat Fac Sto Distress Signals 2 | . . . . . 1 . 1 Communications Jammed . | . . . . . . . . Distress Signals . | . . . . . . . . Times Spotted 75 | . 16 6 5 2 15 10 21 Peak Tracking Total 10 | . 3 2 3 2 4 4 10 Tactical Retreats 5 | . 1 . 4 . . . . Traps | -11 -10 -10 -9 -9 -8 -7 -7 ------- Run | Yrd Mat Min Mat Min Mat Fac Sto Traps Triggered 7 | . 1 . . . . 2 4 Indirectly . | . . . . . . . . Trap Hack Attempts . | . . . . . . . . Triggered . | . . . . . . . . Disarmed . | . . . . . . . . Reprogrammed . | . . . . . . . . Reused 1 | . . . 1 . . . . Traps Extracted . | . . . . . . . . Installed 3 | . . 1 1 . 1 . . Triggered 1 | . . . 1 . . . . Most Traps Carried 3 | . . 3 2 1 1 . . Machines | -11 -10 -10 -9 -9 -8 -7 -7 ---------- Run | Yrd Mat Min Mat Min Mat Fac Sto Machines Disabled 6 | . 3 1 . . . . 2 Max in Single Turn 2 | . 1 1 . . . . 2 Machines Repaired . | . . . . . . . . Machines Dismantled . | . . . . . . . . Machines Sabotaged . | . . . . . . . . Overloaded Fab Kills . | . . . . . . . . Hacking | -11 -10 -10 -9 -9 -8 -7 -7 --------- Run | Yrd Mat Min Mat Min Mat Fac Sto Machines Accessed 3 | . 2 . . . 1 . . Terminals 2 | . 1 . . . 1 . . Fabricators . | . . . . . . . . Repair Stations 1 | . 1 . . . . . . Recycling Units . | . . . . . . . . Scanalyzers . | . . . . . . . . Garrison Access . | . . . . . . . . Total Hacks 6 | . 2 . . . 4 . . Successful 5 | . 1 . . . 4 . . Failed 1 | . 1 . . . . . . Catastrophic . | . . . . . . . . Database Lockouts . | . . . . . . . . Manual . | . . . . . . . . Terminals 5 | . 1 . . . 4 . . Fabricators . | . . . . . . . . Repair Stations 1 | . 1 . . . . . . Recycling Units . | . . . . . . . . Scanalyzers . | . . . . . . . . Garrison Access . | . . . . . . . . Terminal Hacks 4 | . . . . . 4 . . Record 4 | . . . . . 4 . . Fabricator Hacks . | . . . . . . . . Repair Station Hacks 1 | . 1 . . . . . . Scan Component 1 | . 1 . . . . . . Recycling Unit Hacks . | . . . . . . . . Scanalyzer . | . . . . . . . . Garrison Access Hacks . | . . . . . . . . Unauthorized Hacks . | . . . . . . . . Terminals . | . . . . . . . . Fabricators . | . . . . . . . . Repair Stations . | . . . . . . . . Recycling Units . | . . . . . . . . Scanalyzers . | . . . . . . . . Garrison Access . | . . . . . . . . Data Cores Recovered . | . . . . . . . . Used . | . . . . . . . . Hacking Detections 3 | . 2 . . . 1 . . Full Trace Events 1 | . . . . . 1 . . Feedback Events . | . . . . . . . . Feedback Blocked . | . . . . . . . . Robot Schematics Acquired . | . . . . . . . . Robots Built . | . . . . . . . . Authchips . | . . . . . . . . Time . | . . . . . . . . Total Robot Build Rating . | . . . . . . . . Part Schematics Acquired . | . . . . . . . . Parts Built . | . . . . . . . . Authchips . | . . . . . . . . Time . | . . . . . . . . Total Part Build Rating . | . . . . . . . . Parts Repaired . | . . . . . . . . Time . | . . . . . . . . Parts Recycled . | . . . . . . . . Recycled Matter . | . . . . . . . . Retrieved Matter . | . . . . . . . . Retrieved Components . | . . . . . . . . Parts Scanalyzed . | . . . . . . . . Part Schematics Acquired . | . . . . . . . . Parts Damaged . | . . . . . . . . Bothacking | -11 -10 -10 -9 -9 -8 -7 -7 ------------ Run | Yrd Mat Min Mat Min Mat Fac Sto Used RIF Installer . | . . . . . . . . Robots Hacked . | . . . . . . . . Non-combat . | . . . . . . . . Combat . | . . . . . . . . Robot Hacks Applied . | . . . . . . . . Relay Couplers Released . | . . . . . . . . Fabnet Peak Effective % . | . . . . . . . . Robots Rewired . | . . . . . . . . Allies Hacked . | . . . . . . . . Hacks Repelled . | . . . . . . . . Allies | -11 -10 -10 -9 -9 -8 -7 -7 -------- Run | Yrd Mat Min Mat Min Mat Fac Sto Total Allies . | . . . . . . . . Largest Group . | . . . . . . . . Highest-Rated Group . | . . . . . . . . Highest-Rated Ally . | . . . . . . . . Total Orders . | . . . . . . . . Ally Attacks . | . . . . . . . . Total Damage . | . . . . . . . . Kills . | . . . . . . . . Allies Corrupted . | . . . . . . . . Allies Melted . | . . . . . . . . Intel | -11 -10 -10 -9 -9 -8 -7 -7 ------- Run | Yrd Mat Min Mat Min Mat Fac Sto Active Infowar (turns) 1541 | . . . 628 283 630 . . Machine Analysis 1541 | . . . 628 283 630 . . Robot Analysis Total . | . . . . . . . . Derelict Logs Recovered 1 | . . 1 . . . . . Drone Launches . | . . . . . . . . Drone Recoveries . | . . . . . . . . Exploration | -11 -10 -10 -9 -9 -8 -7 -7 ------------- Run | Yrd Mat Min Mat Min Mat Fac Sto Turns Passed 5228 | 161 893 285 766 283 833 993 1014 Spaces Moved 2133 | 49 422 245 310 148 346 310 303 Core 77 | 9 . . . . . . 68 Treads 708 | . . . 43 148 346 171 . Legs 540 | 40 183 . . . . 82 235 Wheels 751 | . 239 245 267 . . . . Hover . | . . . . . . . . Flight 57 | . . . . . . 57 . Fastest Speed 50 | 50 90 90 90 170 161 109 50 Average Speed 153 | 107 103 90 101 170 162 209 261 Slowest Speed 550 | 120 120 90 170 170 170 535 550 Overloaded Moves . | . . . . . . . . Propulsion Burnouts . | . . . . . . . . Robots Hopped . | . . . . . . . . Potential Cave-ins 33 | . . . 5 . 28 . . Cave-ins Triggered 3 | . . . . . 3 . . Exploration Rate (%) 33 | 6 51 67 33 26 23 8 52 Regions Visited 7 Branch Regions 3 Pre-discovered Areas . | . . . . . . . . Known Exits Taken . | . . . . . . . . Unknown Exits Taken 7 | 1 1 1 1 1 1 1 . Scrap Searched 2 | . . 2 . . . . . Spaces Dug 58 | . . . 8 . 42 4 4 Terrain Destroyed 76 | . 5 . 8 . 42 4 17 Melee 58 | . . . 8 . 42 4 4 Projectile . | . . . . . . . . AOE 18 | . 5 . . . . . 13 Terrain Rammed . | . . . . . . . . Walls Destroyed . | . . . . . . . . Machines Disabled . | . . . . . . . . Actions | -11 -10 -10 -9 -9 -8 -7 -7 --------- Run | Yrd Mat Min Mat Min Mat Fac Sto Total 3640 | 155 801 283 730 159 503 567 442 Wait 1121 | 102 322 8 380 . 60 176 73 Move 2123 | 48 421 244 309 147 342 309 303 Hop . | . . . . . . . . Pick Up 15 | . 2 3 1 . 5 4 . Fast Attach 45 | 5 4 . 7 . 9 12 8 Attach 16 | . 1 . 3 . 5 5 2 Detach 16 | . 2 . 5 . 3 3 3 Swap 13 | . 4 . 1 . 3 4 1 Drop 21 | . 4 1 4 . 3 4 5 Fire 133 | . 40 25 . . 22 24 22 Melee 129 | . . . 19 12 47 26 25 Ram 1 | . . 1 . . . . . Kick 1 | . 1 . . . . . . Crush . | . . . . . . . . Escape Stasis 3 | . . . . . 3 . . Rewire . | . . . . . . . . Trap 3 | . . 1 1 . 1 . . Miscellaneous . | . . . . . . . . Route ------- -11/Scrapyard -10/Materials (discovered 2 exits: [*Min x2]) -10/Mines -9/Materials -9/Mines -8/Materials -7/Factory -7/Storage History --------- Turn | Location | Event 5 | -11/Scrapyard | Discovered new exit (range 15) 162 | -11/Scrapyard | Entered Materials 315 | -10/Materials | Build established: Mutant 696 | -10/Materials | Discovered new exit (range 10) 1038 | -10/Materials | Discovered new exit (range 8) 1055 | -10/Materials | Entered Mines 1100 | -10/Mines | Learned Materials trap positions 1114 | -10/Mines | Assembled infested the area 1119 | -10/Mines | Assisted by a Guerilla fighting off Assembled 1149 | -10/Mines | Found a hidden stash of uninstalled traps 1205 | -10/Mines | Core integrity fell below 50% 1264 | -10/Mines | Lost 4 parts (1n2u1w) 1326 | -10/Mines | Discovered new exit (range 16) 1331 | -10/Mines | Core integrity fell below 20% 1340 | -10/Mines | Entered Materials 1340 | -9/Materials | Evolved 2 slots: Utility x1, Weapon x1 1341 | -9/Materials | Loaded intel: 11 trap records 1976 | -9/Materials | Discovered new exit (range 16) 2106 | -9/Materials | Entered Mines 2180 | -9/Mines | Discovered new exit (range 4) 2389 | -9/Mines | Entered Materials 2389 | -8/Materials | Evolved 2 slots: Power x1, Propulsion x1 3019 | -8/Materials | Crushed by falling debris 3020 | -8/Materials | System corruption reached 10% 3024 | -8/Materials | Crushed by falling debris 3050 | -8/Materials | Crushed by falling debris 3081 | -8/Materials | Lost 5 parts (1p2u2w) 3148 | -8/Materials | Discovered new exit (range 9) 3222 | -8/Materials | Entered Factory 3222 | -7/Factory | Evolved 2 slots: Propulsion x1, Weapon x1 3945 | -7/Factory | Lost 5 parts (2p1n2w) 4104 | -7/Factory | System corruption reached 10% 4177 | -7/Factory | Discovered new exit (range 13) 4215 | -7/Factory | Entered Storage 4222 | -7/Storage | Build established: Scavenger-Tank 4459 | -7/Storage | Lost 3 parts (1n1u1w) 5053 | -7/Storage | Build established: Tank 5209 | -7/Storage | Core integrity fell below 50% 5215 | -7/Storage | Core integrity fell below 20% 5229 | -7/Storage | Destroyed by S-27 Virus with Autogun Last Messages --------------- reinforcements to Terminal S002. Hpw. Shotgun destroyed. Lgt. Nuclear Core destroyed. Katana destroyed. Critical hit (Burn: +37). Hpw. Shotgun destroyed. Compression Vault explodes. U-05 Engineer lays Concrete. NN KWLKV5VQB5MW:IC&2ZJFQM9HD25S|TMZUE U-05 Engineer lays Concrete. Rnf. Deuterium Engine destroyed. K-01 Serf collects debris. U-05 Engineer lays Concrete. Core Shielding destroyed. U-05 Engineer lays Concrete. K-01 Serf collects debris. U-05 Engineer destroyed. U-05 Engineer lays Concrete. K-01 Serf collects debris. U-05 Engineer lays Concrete. Map ----- +----------------------------------------------------+ | | | | | | | | | | | | | | | | | | | | | | | | | | | | | ?????????????????????????????????? | | ?????????????????????????????????? | | ?????????????????????????????????? | | ?????????????????????????????????? | | ?????????????????????????????????? | | ?????????????????????????????????? | | ?????????????????????????????????? | | ?????????????????????????????????? | | ?????????????????????????????????? | | ?????????????????????????????????? | | ????????????#+#?????????""""?????? | | ???????????# #???????##@ #?????? | | ???????????# #???????#T #?????? | | ??????????? #???????##ss#?????? | | ???????????# ##########ss#?????? | | ???????????# # """ # a#?????? | | ????######## # "Y" + #?????? | | ????# ! # # " " # #?????? | | ????# ] # # # #?????? | | ????# # # # #?????? | | #####! # # + #?????? | | # # # # #?????? | | """ + # ##### ^##????? | | ??" # # a #????? | | ?"" # # #????? | | ?" # / ""#????? | | ?" # # ""#????? | | "" # #=%! ""#????? | | # !# | G#????? | | # # ""#????? | | +########### ""#????? | | ???????? ""?????? | | ?????? #????? | | ???? #????? | | +##???####+### ######### #????? | | ????????? ??# #???????? #????? | +----------------------------------------------------+ Best States ------------- Heat Dissipation 47 Energy Generation 26 Energy Capacity 465 Matter Stores 300 Matter Capacity 300 Sight Range 16 Terrain Scan Density 10 Armor Coverage 225 Core Shielding 20 Evasion (%) 55 Recoil Reduction 7 Particle Charging 15 Item Schematics ----------------- None Robot Schematics ------------------ None Fabricated ------------ Nothing Repaired ---------- Nothing Alien Tech Used ----------------- None Achievements -------------- I Survived The Infestation Made in Tau Ceti IV More Dakka Please Part-time Excavator Power Corrupts Tourist Unlikely Earthworm Challenges ------------ None Game ------ Seed BiocellMappingChip Manual? 0 Play Time 01:18:05 Cumulative 6.0 hours Start 2025.06.19 @ 12:02:28 End 2025.06.19 @ 13:26:25 Sessions 1 Manual Loads 0 Difficulty Rogue Special Mode None Game No. 8 Rogue 8 Adventurer 0 Explorer 0 Win Type - Total 0 Types 0/0/0/0/0/0/0/0/0/0 Lore% 1 Gallery% 8 Achievement% 8 Wizard Run 0 Options --------- Layout 1 ASCII 0 Keyboard 0 Movement Mouse Keybinds 0 Fullscreen 1 Font 24/Smallcaps Map View 50x40 Zoom Use 0% Tactical HUD 0 Map Filters NONE Filters NONE Steam 1 RUN: 9062a918-0754-43a1-824b-d42d7cc7754d